bitfinex/quotes_ETHUSD_20260114
["timestamp","ask_amount","ask_price","bid_price","bid_amount"]
[1768422045536,0.27656637,3371.0,3369.9,7.18117728]
[1768422045708,1.40954234,3371.1,3369.9,10.14862438]
[1768422045709,0.44517724,3370.9,3369.9,10.14862438]
[1768422045916,0.16861087,3370.9,3370.0,1.24628308]
[1768422046110,0.16861087,3370.9,3369.9,8.9023413]
[1768422046111,0.20749697,3371.5,3370.2,1.24628308]
[1768422046446,0.27654066,3371.4,3370.4,1.24628308]
[1768422046628,1.53278669,3371.3,3370.0,1.24628308]
[1768422046936,1.53278669,3371.2,3369.9,7.18117728]
[1768422047136,0.27654066,3371.1,3370.0,1.27595667]
[1768422047444,0.20749697,3371.5,3370.2,1.24628308]
[1768422047628,1.53276474,3371.4,3370.3,0.02967094]
[1768422047833,0.27651871,3371.3,3370.3,0.02967094]
[1768422049245,0.20749697,3371.5,3370.6,1.24728308]
[1768422049544,0.181943,3371.9,3370.8,1.24628308]
[1768422049721,0.002,3371.7,3370.8,1.24628308]
[1768422051150,0.002,3372.1,3371.0,1.283242]
[1768422052654,1e-08,3372.4,3371.6,1.283242]
[1768422053039,1e-08,3372.4,3371.3,1.283242]
[1768422053235,1e-08,3372.4,3371.4,5.93225366]
[1768422053456,1e-08,3372.4,3371.5,1.01816679]
[1768422054027,1e-08,3372.4,3371.5,2.30140879]
[1768422054758,1.32431123,3372.4,3371.4,2.96612683]
[1768422054961,1.32431123,3372.4,3371.4,5.93225366]
[1768422055330,1.32431123,3372.4,3371.0,8.89940394]
[1768422056240,1.32431123,3372.4,3371.1,1.283242]
[1768422056434,1e-08,3372.4,3371.1,1.3129059]
[1768422056635,1e-08,3372.4,3371.2,2.30447298]
[1768422057341,1e-08,3372.4,3371.3,5.93242962]
[1768422057540,1.32431123,3372.4,3371.3,5.93242962]
[1768422058164,1e-08,3372.4,3371.3,10.18188643]
[1768422058366,1e-08,3372.4,3371.3,7.21567162]
[1768422058721,1.753244,3372.4,3371.3,5.93242962]
[1768422058951,1.32431123,3372.4,3371.3,5.88242962]
[1768422059354,1.32431123,3372.4,3370.6,2.9677797]
[1768422059355,1.32431122,3372.3,3371.1,2.96639079]
[1768422059524,1.32431122,3372.3,3371.1,5.93278158]
[1768422061054,1.32431122,3372.1,3371.1,2.96639079]
[1768422061350,1.32431122,3372.1,3370.6,4.25103752]
[1768422061351,1.32431122,3371.9,3370.7,2.96674281]
[1768422061558,1.32431122,3371.7,3370.7,5.93348562]
[1768422061855,1.32431122,3371.7,3371.3,0.001]
[1768422062439,1.32431122,3371.7,3370.7,5.93348562]
[1768422063454,1.32431122,3371.7,3370.6,0.001]
[1768422064155,30.0,3372.0,3370.6,1.284242]
[1768422064361,1.6009155,3371.9,3370.6,0.001]
[1768422064562,1.32431122,3371.6,3370.6,0.001]
[1768422064861,1.32431122,3371.4,3370.6,0.001]
[1768422065885,1.32431122,3371.7,3370.6,0.001]
[1768422066079,0.27663395,3371.6,3370.6,0.001]
[1768422066382,1.76103969,3371.5,3370.6,0.001]
[1768422066669,1.48440574,3371.5,3370.6,0.001]
[1768422066869,1.60093983,3371.4,3370.6,0.001]
[1768422067052,0.27662861,3371.3,3370.6,0.001]
[1768422068655,2.96570639,3371.9,3370.6,0.001]
[1768422068656,1.32431122,3372.3,3370.6,1.284242]
[1768422068973,3.91606768,3372.2,3370.8,1.283242]
[1768422069563,3.91606768,3372.2,3370.9,7.21637558]
[1768422069967,2.70100001,3372.4,3371.0,1.31290678]
[1768422070274,0.38900001,3372.4,3371.0,1.31290678]
[1768422070763,0.38900001,3372.4,3371.0,1.283242]
[1768422071058,1.32431122,3372.3,3371.0,1.283242]
[1768422071364,1.32431122,3372.3,3371.1,0.72163756]
[1768422071533,1.32431122,3372.1,3371.2,2.9663028]
[1768422072056,1.32431122,3372.1,3371.2,5.9326056]
[1768422072450,4.698,3372.2,3371.2,5.9326056]
[1768422073762,1.32431122,3372.3,3371.2,7.2158476]
[1768422073935,0.38900001,3372.4,3371.3,0.79374852]
[1768422074136,1.32431122,3372.3,3371.3,0.79374852]
[1768422074333,0.002,3372.1,3371.2,5.9326056]
[1768422075145,0.002,3372.1,3371.3,1.283242]
[1768422075738,0.002,3372.1,3371.4,7.21549566]
[1768422076740,0.002,3372.1,3371.5,1.283242]
[1768422076960,1e-08,3372.4,3372.0,1.283242]
[1768422077151,1e-08,3372.4,3371.5,1.283242]
[1768422077345,1e-08,3372.4,3371.7,1.283242]
[1768422077962,1e-08,3372.4,3371.9,1.283242]
[1768422080174,1e-08,3372.4,3372.0,5.9311981]
[1768422080374,1e-08,3372.4,3372.1,1.27270026]
[1768422082456,1e-08,3372.4,3372.2,2.96542316]
[1768422084581,1e-08,3372.8,3372.3,1.20116775]
[1768422084784,0.002,3373.1,3372.6,1.20116775]
[1768422085776,0.002,3373.7,3372.6,1.20116775]
[1768422086782,0.002,3373.7,3372.7,7.13113483]
[1768422087166,0.002,3373.7,3372.8,1.20116775]
[1768422087484,0.002,3373.7,3372.7,8.89495062]
[1768422087485,0.002,3373.7,3373.0,1.20116775]
[1768422088092,1.21599357,3373.7,3372.7,5.92996708]
[1768422088462,1.21599357,3373.7,3372.7,2.96498354]
[1768422088652,1.21399357,3373.6,3372.5,2.96515068]
[1768422088852,1.21399357,3373.4,3372.5,2.96515068]
[1768422089057,1.21399357,3373.2,3372.5,2.96515068]
[1768422090092,2.96611804,3373.7,3372.5,2.96515068]
[1768422090093,0.389,3373.4,3372.5,5.93031005]
[1768422090289,0.389,3373.4,3372.6,1.20116775]
[1768422090690,0.389,3373.4,3372.7,2.96498354]
[1768422090995,1.21399357,3373.3,3372.5,2.96512235]
[1768422091297,1.21399357,3373.3,3372.0,4.16670972]
[1768422091298,1.21399357,3373.1,3372.2,2.96539268]
[1768422091656,1.21399357,3373.1,3372.3,2.96533271]
[1768422092191,1.21399357,3373.1,3371.8,1.20116775]
[1768422092700,1.21399357,3373.1,3371.9,5.931374]
[1768422093691,1.21399357,3373.1,3371.9,7.13254175]
[1768422093894,0.43388113,3373.0,3371.9,7.13254175]
[1768422094596,1.6478747,3373.0,3371.9,7.13254175]
[1768422095598,1.6478747,3373.0,3372.0,1.20116775]
[1768422096792,1.6478747,3373.0,3372.0,2.96556231]
[1768422096793,1.21399357,3372.9,3372.0,2.96556231]
[1768422097374,0.43388113,3373.0,3372.0,7.13232911]
[1768422097691,0.18081741,3372.9,3372.1,1.23082286]
[1768422097894,0.002,3372.7,3372.1,1.20116775]
[1768422098797,0.002,3372.7,3372.2,2.96542316]
[1768422098976,0.002,3372.7,3372.2,5.93084632]
[1768422099490,1.21599357,3372.7,3372.2,2.96542316]
[1768422099688,1.21599357,3372.7,3372.1,2.96549906]
[1768422100791,0.002,3372.7,3372.1,2.96549906]
[1768422101000,0.002,3372.7,3371.7,7.13285673]
[1768422101306,0.002,3372.7,3371.7,10.81200531]
[1768422101505,0.002,3372.7,3371.8,1.20116775]
[1768422101903,0.002,3372.7,3372.0,1.20116775]
[1768422102102,0.002,3372.7,3371.7,9.61083756]
[1768422102103,0.002,3372.7,3372.1,1.20116775]
[1768422103014,0.002,3372.7,3372.2,2.96542316]
[1768422103311,0.002,3372.7,3372.2,5.93084632]
[1768422104205,0.002,3372.7,3372.3,1.20116775]
[1768422105198,0.002,3372.7,3372.3,2.96525449]
[1768422106209,1.21599357,3372.7,3371.5,2.96599041]
[1768422106410,1.21599357,3372.7,3371.4,1.20116775]
[1768422106578,0.002,3372.7,3372.3,5.9306622]
[1768422106778,0.4110762,3374.1,3372.3,5.9306622]
[1768422106779,1.21599357,3373.7,3372.4,1.20116775]
[1768422106984,0.2770484,3373.6,3372.4,1.20116775]
[1768422107186,1.49104197,3373.5,3372.5,5.93031874]
[1768422107380,0.2770484,3373.4,3372.5,5.93031874]
[1768422107580,0.2770484,3373.3,3372.5,5.93031874]
[1768422107807,1.21399357,3373.5,3372.5,5.93031874]
[1768422108018,0.27701517,3373.4,3372.5,5.93031874]
[1768422108317,0.27701517,3373.3,3372.5,5.93031874]
[1768422110016,1.49100874,3373.3,3372.5,5.93031874]
[1768422110219,1.21399357,3373.3,3372.5,5.93031874]
[1768422110593,1.21399357,3373.3,3372.4,2.96520748]
[1768422110818,1.20265232,3373.1,3372.4,2.96520748]
[1768422111017,1.47965562,3373.0,3372.3,0.001]
[1768422111196,1.47965562,3372.9,3372.3,2.96633314]
[1768422111522,0.46406886,3372.8,3372.3,2.96633314]
[1768422111822,0.27705138,3372.7,3372.3,0.001]
[1768422112016,0.18706556,3372.8,3372.3,0.001]
[1768422112318,0.27704877,3372.7,3372.3,0.001]
[1768422112518,0.18706556,3372.8,3372.3,0.001]
[1768422112720,0.27704823,3372.7,3372.3,0.001]
[1768422112922,0.16667661,3372.6,3372.3,0.001]
[1768422114720,30.0,3373.0,3372.3,0.001]
[1768422115024,0.27703827,3372.9,3372.3,0.001]
[1768422115315,0.27703827,3372.8,3372.3,0.001]
[1768422115522,6.999,3373.0,3372.3,0.001]
[1768422115704,10.27704179,3372.9,3372.3,0.001]
[1768422115916,1.4641112,3372.8,3372.3,0.001]
[1768422116091,1.18706941,3372.8,3372.3,0.001]
[1768422116692,18.343,3373.0,3372.3,0.001]
[1768422116926,10.27706968,3372.9,3372.3,0.001]
[1768422117224,0.27706968,3372.8,3372.3,0.001]
[1768422117413,0.27706968,3372.7,3372.3,0.001]
[1768422117613,30.0,3372.9,3372.3,0.001]
[1768422117924,0.27713892,3372.8,3372.3,0.001]
[1768422118221,1.47979124,3372.7,3371.9,5.93135263]
[1768422118434,1.20265232,3372.9,3371.9,7.22120837]
[1768422118638,0.27719231,3372.8,3371.9,7.22120837]
[1768422118927,0.27719231,3372.7,3371.9,5.93135263]
[1768422119151,2.64710905,3372.7,3371.9,5.93135263]
[1768422119292,1.20265232,3372.7,3371.9,2.96566563]
[1768422119497,0.27720857,3372.6,3371.9,5.93135263]
[1768422119705,1.20265232,3372.7,3371.9,5.93135263]
[1768422119897,1.20265232,3372.7,3371.7,5.93172582]
[1768422120297,0.27723641,3372.6,3371.7,7.22158156]
[1768422120498,1.20265232,3372.7,3371.7,7.22158156]
[1768422120712,0.27723607,3372.6,3371.7,7.22158156]
[1768422120929,1.20265232,3372.7,3371.7,7.22158156]
[1768422121124,0.27723636,3372.6,3371.7,2.96586291]
[1768422121432,1.20265232,3372.3,3371.6,2.96594124]
[1768422121638,0.27723988,3372.2,3371.6,5.93189212]
[1768422121802,0.27723988,3372.2,3371.6,2.96594124]
[1768422122121,0.27723988,3372.1,3371.6,2.96594124]
[1768422122323,10.576,3372.4,3371.6,5.93189212]
[1768422122516,1.45505586,3372.3,3371.6,5.93189212]
[1768422122713,0.27719063,3372.2,3371.6,5.93189212]
[1768422122930,12.747,3372.4,3371.6,5.96155162]
[1768422123132,0.27718951,3372.3,3371.6,5.96155162]
[1768422123446,10.0,3372.7,3371.6,7.25140736]
[1768422123447,1.20265232,3372.7,3371.6,7.25140736]
[1768422123640,10.986,3372.5,3371.6,7.22174786]
[1768422123849,11.52370059,3372.4,3371.6,7.22174786]
[1768422124052,0.002,3373.1,3371.9,1.28985574]
[1768422124615,0.002,3373.1,3371.9,1.29085574]
[1768422125042,0.002,3373.1,3372.1,1.28985574]
[1768422125210,0.002,3373.1,3372.3,1.28985574]
[1768422126021,0.002,3373.1,3372.4,5.9304946]
[1768422126215,0.002,3373.1,3372.5,1.28985574]
[1768422127030,0.002,3373.1,3372.4,5.9304946]
[1768422128243,1.20465232,3373.1,3372.0,2.96559905]
[1768422128628,1.20465232,3373.1,3372.0,5.9311981]
[1768422128850,1.12046523,3373.0,3372.0,5.9311981]
[1768422129157,1.12046523,3373.0,3372.1,1.28985574]
[1768422129324,1.20465232,3373.1,3372.1,1.28985574]
[1768422129645,0.002,3373.1,3372.1,1.28985574]
[1768422130156,0.002,3373.1,3372.2,5.93084632]
[1768422130466,0.002,3373.1,3372.3,1.28985574]
[1768422132243,0.002,3373.7,3372.8,1.28985574]
[1768422132456,0.03849999,3374.0,3373.3,1.28985574]
[1768422134228,0.03849999,3374.0,3373.4,5.92873658]
[1768422134857,0.03849999,3374.0,3373.4,2.96436829]
[1768422135156,30.25965232,3373.9,3372.7,1.28985574]
[1768422135343,1.20265232,3373.7,3372.9,2.96475582]
[1768422135726,1.20265232,3373.7,3372.8,2.96488074]
[1768422135923,1.20465232,3373.7,3372.8,2.96488074]
[1768422136134,1.20465232,3373.7,3372.9,2.96480444]
[1768422136452,1.62535166,3373.7,3372.5,7.22017448]
[1768422136628,1.20465232,3373.7,3372.5,10.18533385]
[1768422136828,1.20465232,3373.7,3372.5,7.22017448]
[1768422137463,1.20465232,3373.7,3372.5,10.18533385]
[1768422137767,1.20465232,3373.7,3372.5,7.22017448]
[1768422140346,1.20465232,3373.7,3372.6,1.21013234]
[1768422140645,1.20465232,3373.7,3372.7,1.01056512]
[1768422141060,0.002,3373.7,3372.8,1.21744364]
[1768422141262,0.002,3373.7,3373.0,1.21744364]
[1768422142259,0.002,3373.7,3372.8,5.92979126]
[1768422142760,0.002,3373.7,3372.6,2.96501717]
[1768422142761,1.16592567,3373.5,3372.6,2.96501717]
[1768422142958,1.16592567,3373.4,3372.7,2.96496136]
[1768422143257,1.16592567,3373.4,3372.6,2.96505644]
[1768422143462,1.16592567,3373.4,3372.7,2.9649487]
[1768422144168,1.16592567,3373.4,3372.7,5.92993224]
[1768422144337,11.004,3373.6,3372.4,5.9304946]
[1768422144526,11.21719257,3373.5,3372.4,5.9304946]
[1768422144732,2.38311824,3373.5,3372.4,5.9304946]
[1768422145334,1.16592567,3373.5,3372.4,5.9304946]
[1768422146074,1.16592567,3373.5,3372.4,2.9652473]
[1768422146274,1.16592567,3373.3,3372.4,2.9652473]
[1768422146648,1.16592567,3373.3,3372.2,1.21744364]
[1768422147377,30.0,3373.5,3372.2,1.21744364]
[1768422147674,1.16592567,3373.6,3372.7,0.001]
[1768422147873,0.002,3373.7,3372.7,1.21844364]
[1768422148260,0.002,3374.4,3373.1,1.21744364]
[1768422148773,0.27640205,3374.3,3373.3,1.21744364]
[1768422149075,30.0,3374.3,3373.2,5.9290881]
[1768422149260,9.163,3374.3,3373.3,1.21744364]
[1768422150547,9.163,3374.3,3373.4,2.96436829]
[1768422150772,9.163,3374.3,3373.4,5.92873658]
[1768422151873,0.002,3374.4,3373.4,5.92873658]
[1768422152176,9.158,3374.3,3373.4,5.92873658]
[1768422152473,1.03279257,3374.3,3373.4,5.92873658]
[1768422152775,9.078,3374.3,3373.4,5.92873658]
[1768422153073,0.002,3374.4,3373.4,5.92873658]
[1768422155147,1.16592567,3374.2,3373.3,2.96441693]
[1768422155387,0.002,3374.4,3373.3,5.9288731]
[1768422155679,0.27650287,3374.3,3373.3,5.9288731]
[1768422155866,0.002,3374.4,3373.3,5.9288731]
[1768422156065,0.27650271,3374.3,3373.3,5.9288731]
[1768422156249,0.002,3374.4,3373.3,5.9288731]
[1768422156579,0.27652144,3374.3,3373.3,7.14631674]
[1768422156776,0.002,3374.4,3373.4,1.21744364]
[1768422156983,0.15799257,3374.4,3373.4,1.21744364]
[1768422158782,0.15799257,3374.4,3373.5,5.92856084]
[1768422159976,0.002,3374.1,3373.5,5.92856084]
[1768422161690,0.002,3374.1,3373.5,2.96428042]
[1768422161878,0.002,3374.1,3373.3,0.001]
[1768422161879,1.16792567,3374.1,3373.3,0.001]
[1768422162078,1.59686993,3374.1,3373.4,2.96434449]
[1768422162481,0.002,3374.1,3373.4,5.92871278]
[1768422163010,0.002,3374.1,3373.5,1.21744364]
[1768422163208,0.002,3374.1,3373.6,2.96419255]
[1768422164582,0.002,3374.1,3373.6,7.14582874]
[1768422164789,0.002,3374.1,3373.6,4.18163619]
[1768422165807,0.002,3374.1,3373.3,1.21844364]
[1768422166020,0.002,3374.1,3373.5,2.9642747]
[1768422166605,0.002,3374.1,3373.3,0.001]
[1768422166813,1.16792567,3374.1,3373.4,2.96433522]
[1768422168236,1.16792567,3374.1,3373.3,0.001]
[1768422169128,1.58127012,3374.1,3373.3,0.001]
[1768422169805,1.16592567,3374.0,3373.3,0.001]
[1768422171924,1.16592567,3374.0,3373.6,0.001]
[1768422172933,0.002,3374.1,3373.6,0.001]
[1768422176911,0.002,3374.1,3373.6,1.20251966]
[1768422178632,0.002,3374.1,3373.7,4.16562435]
[1768422178845,0.002,3374.1,3373.7,7.12972904]
[1768422180038,0.002,3374.1,3373.7,4.16562435]
[1768422180214,0.002,3374.1,3373.8,1.20151966]
[1768422180825,0.002,3374.1,3373.9,2.96392898]
[1768422181031,0.002,3374.1,3373.9,4.16544864]
[1768422181525,0.002,3374.1,3373.9,1.20151966]
[1768422182843,0.002,3374.1,3373.9,4.16536567]
[1768422184040,0.002,3374.1,3373.9,4.16636567]
[1768422184220,0.002,3374.1,3373.9,4.95080768]
[1768422185411,0.002,3374.4,3373.9,4.95080768]
[1768422185412,1e-08,3374.4,3374.0,1.20151966]
[1768422185613,1e-08,3374.4,3373.9,6.713217]
[1768422185614,1e-08,3374.8,3374.3,1.20151966]
[1768422185939,1e-08,3374.8,3374.0,1.20151966]
[1768422186125,1e-08,3374.8,3374.1,1.99299333]
[1768422186334,1e-08,3374.8,3374.2,1.20151966]
[1768422186913,1e-08,3374.8,3374.4,1.20151966]
[1768422187541,1e-08,3374.8,3373.9,0.001]
[1768422187542,1.16407198,3374.8,3373.9,0.001]
[1768422187845,1.16407197,3374.2,3373.6,0.001]
[1768422188047,1.16407197,3374.0,3373.3,0.001]
[1768422188213,5.26311798,3374.3,3372.8,1.20151966]
[1768422188214,1.16407197,3373.6,3372.8,2.9648251]
[1768422188419,1.16407197,3373.6,3372.9,2.96476751]
[1768422188637,1.16407197,3373.6,3373.0,2.96471751]
[1768422188835,1.16407197,3373.9,3373.2,2.96454405]
[1768422189023,0.27691424,3373.8,3373.1,2.96460882]
[1768422189346,1.31947917,3373.9,3373.1,2.96460882]
[1768422189644,0.27688962,3373.8,3373.1,2.96460882]
[1768422189818,1.31947917,3373.9,3373.1,2.96460882]
[1768422190018,0.27688962,3373.8,3373.0,2.96468504]
[1768422190318,0.49501254,3373.8,3373.1,2.96462662]
[1768422190735,1.31947917,3373.9,3373.0,2.96469518]
[1768422190927,0.27685711,3373.8,3373.0,2.96469518]
[1768422191127,1.31947917,3373.9,3373.0,2.96469518]
[1768422191354,0.27685688,3373.8,3373.1,1.20151966]
[1768422191537,1.55407197,3374.1,3373.1,1.20151966]
[1768422191850,0.43221412,3374.0,3373.1,1.23116597]
[1768422192150,0.1554072,3374.0,3373.1,1.23116597]
[1768422192446,0.27679381,3373.9,3373.0,2.96469518]
[1768422192651,0.2768078,3373.8,3373.0,2.96469518]
[1768422192850,1.16407197,3373.9,3372.9,2.96480773]
[1768422193053,0.74414545,3373.8,3372.9,2.96480773]
[1768422193254,0.46733304,3373.8,3372.9,2.96480773]
[1768422193559,0.46733304,3373.8,3372.9,5.92961546]
[1768422193847,1.16407197,3373.9,3372.9,5.92961546]
[1768422194352,1.44085568,3373.8,3372.8,7.13126866]
[1768422194543,1.16407197,3373.8,3372.8,7.13126866]
[1768422194718,1.16407197,3373.8,3372.8,4.16637303]
[1768422194920,1.16407197,3373.8,3372.8,7.13126866]
[1768422195120,0.4283359,3373.7,3372.8,7.13126866]
[1768422195850,1.16407197,3373.8,3372.9,1.20151966]
[1768422196353,1.16407197,3373.8,3373.1,0.001]
[1768422199348,1.31947917,3374.0,3373.1,0.001]
[1768422199719,1.4406779,3373.9,3373.1,0.001]
[1768422199919,1.16407197,3373.9,3373.1,0.001]
[1768422200149,1.16407197,3373.7,3373.1,0.001]
[1768422204548,1.04062418,3373.6,3373.1,0.001]
[1768422204759,1.04062418,3373.5,3372.7,0.001]
[1768422204958,1.04062418,3373.1,3371.9,1.08377732]
[1768422205157,0.39,3373.1,3372.2,1.08277732]
[1768422205356,0.39,3373.1,3372.3,2.96528079]
[1768422205645,1.04062418,3372.9,3372.0,2.96552186]
[1768422206054,1.04062418,3372.9,3371.9,0.001]
[1768422206254,1.04062418,3372.4,3371.9,0.001]
[1768422209037,18.782,3372.6,3371.9,0.001]
[1768422209735,11.04062418,3372.5,3371.9,0.001]
[1768422210035,0.49588104,3372.4,3371.9,0.001]
[1768422210241,1.04062418,3372.5,3371.9,0.001]
[1768422213033,1.04062418,3372.5,3371.3,1.08277732]
[1768422213235,0.39,3373.1,3371.6,1.08277732]
[1768422213236,1.04062418,3373.0,3371.6,1.08277732]
[1768422213437,0.002,3373.4,3372.7,1.08277732]
[1768422213641,0.39,3373.9,3372.9,5.27124736]
[1768422214247,0.39,3373.9,3372.8,7.01256858]
[1768422214452,10.39,3373.9,3372.8,7.01256858]
[1768422214656,0.39,3373.9,3372.9,1.08277732]
[1768422214853,0.44164734,3373.7,3372.9,6.35402468]
[1768422215054,0.002,3373.7,3373.0,1.08277732]
[1768422215362,0.002,3374.5,3373.6,1.08277732]
[1768422215548,0.002,3374.5,3372.7,6.98176206]
[1768422215549,0.002,3374.5,3373.8,1.08277732]
[1768422217763,0.002,3374.5,3373.9,7.01063528]
[1768422217966,0.002,3374.5,3373.9,4.0467063]
[1768422218361,0.002,3374.5,3374.0,1.08277732]
[1768422219248,0.002,3374.5,3373.9,2.96392898]
[1768422219754,0.002,3374.5,3373.8,4.04679415]
[1768422220663,0.002,3374.5,3373.9,1.08277732]
[1768422221440,1e-08,3374.8,3374.0,1.08277732]
[1768422221645,0.002,3375.1,3374.5,1.08277732]
[1768422222759,0.002,3375.8,3375.0,1.08277732]
[1768422222944,1e-08,3375.5,3375.0,1.08277732]
[1768422223146,0.002,3376.3,3375.6,1.08277732]
[1768422223670,0.002,3376.3,3375.7,2.96234854]
[1768422224495,0.002,3376.3,3375.6,4.04519781]
[1768422225044,0.002,3376.3,3375.6,1.08277732]
[1768422225248,0.002,3376.3,3374.9,3.35300915]
[1768422225249,0.002,3376.3,3375.0,1.08277732]
[1768422225498,0.002,3376.3,3375.4,2.96255137]
[1768422225677,0.002,3376.3,3375.3,2.96269961]
[1768422225992,1.04262418,3376.3,3375.3,2.96269961]
[1768422226598,0.69880571,3376.2,3375.3,2.96269961]
[1768422227747,0.69880571,3376.2,3375.3,1.08277732]
[1768422227948,0.002,3376.2,3375.3,1.08277732]
[1768422229308,1.04062418,3376.1,3374.6,1.08277732]
[1768422229595,1.04062418,3376.1,3375.1,2.96279014]
[1768422229813,1.04062418,3376.1,3375.0,1.08277732]
[1768422230989,2.96393655,3376.2,3375.0,1.08277732]
[1768422231194,0.69335232,3376.1,3375.0,1.08277732]
[1768422231880,0.69335232,3376.1,3375.1,6.96732691]
[1768422232075,0.002,3376.2,3375.1,4.00445174]
[1768422232272,2.96394511,3376.2,3375.1,4.00445174]
[1768422232477,0.002,3376.2,3375.1,6.96732691]
[1768422232695,2.96392034,3376.2,3375.1,4.00445174]
[1768422233772,0.002,3375.8,3375.1,6.96732691]
[1768422233990,0.002,3375.8,3375.1,7.6640596]
[1768422234193,0.002,3375.8,3375.1,3.65960786]
[1768422235074,0.002,3375.8,3375.1,2.96287517]
[1768422236103,0.002,3375.8,3375.0,5.92590238]
[1768422236302,0.002,3375.8,3375.0,6.96747895]
[1768422236616,0.002,3375.8,3375.1,1.04157657]
[1768422238282,0.002,3375.8,3375.2,2.96278739]
[1768422239608,0.002,3375.8,3374.8,1.04157657]
[1768422239820,1.00784094,3375.8,3374.8,1.04157657]
[1768422240020,1.00784094,3375.8,3374.3,1.04157657]
[1768422240233,1.00784094,3375.8,3374.7,2.96322559]
[1768422240386,1.00584094,3375.6,3374.4,2.96342601]
[1768422240711,1.00584094,3375.6,3374.4,5.92691581]
[1768422240914,1.00584094,3375.6,3374.4,6.96849238]
[1768422241106,1.39701895,3375.5,3374.5,1.04157657]
[1768422241618,1.00584094,3375.6,3374.3,1.04157657]
[1768422241822,1.00584094,3375.5,3374.0,1.04157657]
[1768422241992,1.00584094,3375.1,3374.1,2.96374381]
[1768422242198,1.00584094,3375.1,3373.8,1.04157657]
[1768422242400,0.39,3375.3,3373.6,2.96419111]
[1768422242401,1.00584094,3374.8,3373.6,2.96419111]
[1768422242726,1.00584094,3374.5,3373.6,5.92838366]
[1768422242886,5.062,3374.6,3373.6,6.96996023]
[1768422243716,5.062,3374.6,3373.6,4.00576768]
[1768422243902,1.00584094,3374.6,3373.6,2.96419111]
[1768422244613,1.00584094,3374.5,3373.4,2.96436825]
[1768422244931,1.00584094,3374.5,3373.5,0.40059448]
[1768422245424,1.00584094,3374.5,3373.4,5.92873654]
[1768422245589,0.69319424,3374.7,3373.5,1.07121937]
[1768422246421,0.69319424,3374.7,3373.9,0.001]
[1768422246588,0.69319424,3374.7,3373.9,0.03063928]
[1768422246789,0.69319424,3374.7,3374.0,2.96384113]
[1768422247197,3.35273692,3375.3,3374.1,1.0712141]
[1768422247401,3.35273692,3375.3,3374.1,1.04157657]
[1768422247402,30.2758139,3375.2,3374.1,1.04157657]
[1768422247600,1.00584094,3375.2,3374.1,1.04157657]
[1768422247799,0.73213148,3375.1,3374.1,1.04157657]
[1768422248089,1.00584094,3375.0,3374.0,2.96384113]
[1768422248891,1.00584094,3375.0,3373.9,6.97043453]
[1768422250190,1.00584094,3374.9,3373.9,0.001]
[1768422250392,1.00584094,3374.7,3373.9,0.001]
[1768422251324,3.96915511,3374.6,3373.9,0.001]
[1768422251726,1.00584094,3374.6,3373.9,0.001]
[1768422253421,2.96340198,3374.5,3373.9,0.001]
[1768422253728,3.96924292,3374.5,3373.9,0.001]
[1768422253931,0.39692429,3374.4,3373.9,0.001]
[1768422254225,1.00584094,3374.5,3373.9,0.001]
[1768422255399,3.96925001,3374.5,3373.9,0.001]
[1768422255825,1.00584094,3374.5,3373.9,0.001]
[1768422256008,3.96924558,3374.5,3373.9,0.001]
[1768422256528,1.00584094,3374.4,3373.9,0.001]
[1768422256700,1.00584094,3374.2,3373.4,2.96435533]
[1768422256900,1.00584094,3374.2,3373.2,1.04157657]
[1768422257113,1.00584094,3374.2,3373.0,1.04157657]
[1768422257316,1.00584094,3373.9,3372.7,2.96492252]
[1768422257515,1.00584094,3373.7,3372.6,2.96500425]
[1768422257720,0.39698578,3373.6,3372.6,2.96500425]
[1768422258035,0.39698578,3373.6,3372.6,6.97165227]
[1768422259326,0.39698578,3373.6,3372.6,4.00658082]
[1768422259624,1.00584094,3373.4,3372.6,2.96504025]
[1768422260200,0.39,3373.6,3372.5,2.96512466]
[1768422260201,4.36005094,3373.6,3372.5,2.96512466]
[1768422260399,0.97648767,3373.5,3372.5,2.96512466]
[1768422260625,0.97648767,3373.5,3372.6,2.96504817]
[1768422260827,1.06875041,3373.2,3371.9,0.97384202]
[1768422261027,9.28263,3373.6,3372.1,2.96543293]
[1768422261028,1.06875041,3373.0,3372.1,2.96543293]
[1768422261324,9.28263,3373.6,3372.4,3.93902531]
[1768422261325,6.505,3373.5,3372.4,3.93902531]
[1768422261525,1.06875041,3373.3,3372.3,2.96529741]
[1768422261857,4.03324524,3373.3,3372.2,3.93926518]
[1768422262329,1.06875041,3373.3,3372.2,6.90468834]
[1768422262515,2.96433628,3373.5,3372.3,0.97384202]
[1768422262831,1.06875041,3373.4,3372.3,0.97384202]
[1768422264039,2.96445617,3373.3,3372.3,3.93916083]
[1768422264539,2.96428626,3373.5,3372.4,0.97384202]
[1768422264706,4.42296572,3373.6,3372.4,0.97384202]
[1768422265734,1.45875041,3373.6,3372.4,0.97384202]
[1768422265939,0.39,3373.6,3372.7,0.97384202]
[1768422268045,0.39,3373.6,3373.0,0.97384202]
[1768422268344,0.39,3373.6,3373.1,1.00348833]
[1768422268549,0.31940506,3374.0,3373.1,0.97384202]
[1768422268717,0.31940506,3374.0,3373.1,1.66418777]
[1768422269533,1.38815547,3374.0,3373.1,0.69034575]
[1768422270300,1.38815547,3374.0,3373.1,3.65490392]
[1768422270538,4.35200369,3374.0,3373.1,0.69034575]
[1768422271020,1.06875041,3373.9,3372.8,0.97384202]
[1768422271201,1.06875041,3373.7,3372.6,2.96502837]
[1768422272058,1.06875041,3373.5,3372.5,0.001]
[1768422272408,1.06875041,3373.3,3372.5,0.001]
[1768422274876,0.391,3373.4,3372.5,0.001]
[1768422275037,0.391,3373.4,3372.6,0.97384202]
[1768422276962,0.391,3373.4,3372.7,2.96498354]
[1768422278662,0.391,3373.4,3372.7,3.93882556]
[1768422279665,0.391,3373.4,3372.7,6.9038091]
[1768422280197,0.31940506,3374.0,3372.8,0.97384202]
[1768422280485,1.34523586,3373.9,3372.9,1.66422293]
[1768422280640,0.27648545,3373.8,3372.9,1.66422293]
[1768422280839,0.27648545,3373.7,3372.9,1.66422293]
[1768422281058,1.06875041,3373.9,3372.9,1.66422293]
[1768422281259,0.27648212,3373.8,3372.9,1.66422293]
[1768422281454,0.27648212,3373.7,3373.0,0.759419]